Cogmind - Beta 13 @@@ ROGUE MODE // 2024.04.29 @ 20:48:31 Player: orthostice Result: Destroyed by D-53 Grenadier with Mini Grenade Launcher Performance ------------- Evolutions (1) 500 Regions Visited (3) 600 Robots Destroyed (25) 125 Value Destroyed (616) 616 Prototype IDs (0) 0 Alien Tech Used (0) 0 Bonus (35) 35 TOTAL SCORE: 1876 Bonus ------- Follower Combat Kills 35 Cogmind --------- Core Integrity 0/400 Matter 48/300 Energy 50/100 System Corruption 0% Temperature Warm (169) Movement Core (400) Ox7 Location -9/Mines Parts ------- > --- POWER (1) -------- (None) > --- PROPULSION (3) --- (None) > --- UTILITY (3) ------ Large Storage Unit Signal Interpreter > --- WEAPON (2) ------- Field Laser > --- INVENTORY (15) --- Light Ion Engine Aluminum Leg Small Storage Unit Medium Storage Unit Large Storage Unit Field Laser Light Assault Rifle Rocket Launcher Rocket Launcher Rocket Launcher Mini Grenade Launcher Peak State ------------ > --- POWER ------------ Light Ion Engine > --- PROPULSION ------- Light Treads Aluminum Leg Improved Aluminum Leg > --- UTILITY ---------- Large Storage Unit Signal Interpreter > --- WEAPON ----------- Field Laser Field Laser > --- INVENTORY -------- Light Ion Engine Light Treads Small Storage Unit Medium Storage Unit Large Storage Unit Field Laser Light Assault Rifle Rocket Launcher Rocket Launcher Rocket Launcher [Rating: 14] Favorites ----------- Power Ion Engine Engine Ion Engine Propulsion Light Treads Treads Light Treads Leg Aluminum Leg Utility Large Storage Unit Storage Large Storage Unit Processor Signal Interpreter Weapon Light Assault Rifle Energy Gun Field Laser Ballistic Gun Light Assault Rifle Launcher Grenade Launcher Build | -11 -10 -9 -9 ------- Run | Yrd Mat Mat Min Slots Evolved 2 | . . 2 . Power . | . . . . Propulsion 1 | . . 1 . Utility 1 | . . 1 . Weapon . | . . . . Parts Attached 34 | 6 2 13 13 Power 3 | 1 . 1 1 Engine 3 | 1 . 1 1 Core . | . . . . Reactor . | . . . . Propulsion 10 | 2 . 4 4 Treads 6 | 2 . 2 2 Leg 4 | . . 2 2 Wheel . | . . . . Hover . | . . . . Flight . | . . . . Utility 4 | 1 1 2 . Device . | . . . . Storage 3 | 1 1 1 . Processor 1 | . . 1 . Hackware . | . . . . Protection . | . . . . Artifact . | . . . . Weapon 17 | 2 1 6 8 Energy Gun 9 | 1 . 4 4 Energy Cannon . | . . . . Ballistic Gun 1 | 1 . . . Ballistic Cannon . | . . . . Launcher 7 | . 1 2 4 Special Weapon . | . . . . Impact Weapon . | . . . . Slashing Weapon . | . . . . Piercing Weapon . | . . . . Special Melee Weapon . | . . . . Unidentified Prototypes . | . . . . Parts Lost 14 | . . 6 8 Power 3 | . . 1 2 Propulsion 7 | . . 2 5 Utility . | . . . . Weapon 4 | . . 3 1 Highest Loss Streak 8 | . . 5 8 To Critical Strikes . | . . . . Average Slot Usage (%) 79 | . 85 68 85 Engine 12 | . 14 11 11 Treads 17 | . 28 15 2 Leg 10 | . . 7 28 Storage 12 | . 14 11 11 Processor 3 | . . 1 11 Energy Gun 7 | . 4 7 12 Ballistic Gun 7 | . 14 5 . Launcher 9 | . 9 8 9 Naked Turns . | . . . . Heaviest Build 31 | 13 29 31 29 Greatest Support 40 | 40 40 40 33 Greatest Overweight (x) 10 | . . 10 9 Average Overweight (x) . | . . . . Largest Inventory Capacity 15 | 8 15 15 15 Average Capacity 13 | 7 11 15 15 Most Carried 15 | 8 14 15 14 Average Carried 10 | 4 9 13 12 Final Capacity 15 | 8 15 15 15 Final Carried 14 | 6 14 10 11 Class Distribution -------------------- 100% | Mutant Dominant Class ---------------- Mutant | -10/Materials Mutant | -9/Materials Mutant | -9/Mines Resources | -11 -10 -9 -9 ----------- Run | Yrd Mat Mat Min Matter Collected 575 | 188 100 197 90 Remotely . | . . . . Salvage Created 767 | . 100 525 142 Parts 40 | . 5 28 7 Haulers Intercepted . | . . . . Recyclers Shooed 2 | . . 1 1 Parts Field Recycled . | . . . . Retrieved Matter . | . . . . Parts Self-Destructed . | . . . . Prevented . | . . . . Kills | -11 -10 -9 -9 ------- Run | Yrd Mat Mat Min Combat Hostiles Destroyed 24 | . 1 9 14 Guns 7 | . . 5 2 AOE 17 | . 1 4 12 Classes Destroyed 9 | . 3 4 2 Builder 2 | . . 2 . Recycler 5 | . 1 4 . Operator 1 | . 1 . . Watcher 2 | . . 2 . Swarmer 3 | . 1 2 . Grunt 7 | . . 3 4 Duelist 1 | . . . 1 Sentry 4 | . . 4 . Assembled 9 | . . . 9 Best Kill Streak 9 | . 2 8 9 Combat Bots Only 9 | . 1 4 9 Max Kills in Single Turn 3 | . 2 3 3 Gunslinging . | . . . . Exploded 3 | . 1 1 3 Melee . | . . . . Uniques/NPCs Destroyed . | . . . . Combat | -11 -10 -9 -9 -------- Run | Yrd Mat Mat Min Hostile Shots Fired 155 | . 7 83 65 Missed 33 | . 2 19 12 Damage Taken 2047 | . 75 984 988 Core 426 | . 12 155 259 Absorbed by Shields . | . . . . Core Remaining (%) 97 | 100 95 . . Volleys Fired 48 | . 3 27 18 Largest 2 | . 2 2 2 Hottest 126 | . 70 126 126 Shots Fired 87 | . 6 50 31 Gun 56 | . 5 36 15 Cannon . | . . . . Launcher 31 | . 1 14 16 Special . | . . . . Kinetic 9 | . 3 6 . Thermal 47 | . 2 30 15 Explosive 31 | . 1 14 16 Electromagnetic . | . . . . Robot Hit Streak 19 | . 3 19 8 Robot Miss Streak 3 | . 1 2 3 Penetration Max . | . . . . Secondary Targets 1 | . . 1 . Max Gunslinging Chain 1 | . . 1 . Shots Hit Robots 62 | . 4 41 17 Core Hits 68 | . 4 31 33 Critical Kills . | . . . . Critical Parts Destroyed . | . . . . Critical Strikes 1 | . . . 1 Burn 1 | . . . 1 Melee Attacks . | . . . . Impact . | . . . . Slashing . | . . . . Piercing . | . . . . Sneak Attacks . | . . . . Combat Hostiles . | . . . . Follow-up Attacks . | . . . . Damage Inflicted 2643 | . 88 1298 1257 Guns 718 | . 29 504 185 Cannons . | . . . . Explosions 1920 | . 59 789 1072 Melee . | . . . . Ramming 5 | . . 5 . Kinetic 42 | . 16 26 . Thermal 750 | . 13 552 185 Explosive 1846 | . 59 715 1072 Electromagnetic . | . . . . Impact . | . . . . Slashing . | . . . . Piercing . | . . . . Highest Corruption 2 | . 2 . . Average Corruption 2 | . 2 . . Corruption Purged . | . . . . Corruption Blocked . | . . . . Effects 3 | . 3 . . Message Errors 1 | . 1 . . Matter Fused 1 | . 1 . . Data Loss (minor) 1 | . 1 . . Overload Shots . | . . . . Overflow Damage 89 | . . 61 28 Projectiles . | . . . . Explosions 89 | . . 61 28 Melee . | . . . . Knockbacks . | . . . . Impact . | . . . . Kinetic . | . . . . Secondary . | . . . . Self-Inflicted Damage 239 | . 37 131 71 Shots 7 | . 1 4 2 Rammed 1 | . . 1 . Targets Rammed 3 | . . 2 1 Kicked 2 | . . 1 1 Crushed . | . . . . Highest Temperature 546 | . 40 546 246 Average Temperature 192 | . 17 239 98 Received Heat Transfer 486 | . . 414 72 Effects 7 | . . 7 . Shutdowns 1 | . . 1 . Energy Bleed 2 | . . 2 . Damage (minor) 3 | . . 3 . Damage (major) 1 | . . 1 . Siege Activations . | . . . . Robots Corrupted . | . . . . Combat Hostiles . | . . . . Parts Fried . | . . . . Impact Corruptions . | . . . . Robots Melted . | . . . . Combat Hostiles . | . . . . Parts Melted 4 | . . 4 . Heat Transferred 1604 | . 37 1086 481 Parts Sabotaged . | . . . . Parts Stolen . | . . . . Parts Stripped . | . . . . Power Chain Reactions . | . . . . Alert | -11 -10 -9 -9 ------- Run | Yrd Mat Mat Min Peak Influence 416 | . 64 416 381 Initial 162 | . . . 162 Average 123 | . 30 143 280 Maximum Alert Level 2 | . . 2 1 Low Security (%) 66 | 100 100 66 6 Level 1 29 | . . 19 93 Level 2 3 | . . 14 . Level 3 . | . . . . Level 4 . | . . . . Level 5 . | . . . . High Security . | . . . . Max Security . | . . . . Squads Dispatched 2 | . . 1 1 Investigation 1 | . . 1 . Extermination . | . . . . Reinforcement . | . . . . Assault 1 | . . . 1 Garrison . | . . . . Intercept . | . . . . Searches Triggered . | . . . . Construction Impeded . | . . . . Haulers Reinforced . | . . . . Active Scanning Responses . | . . . . Cargo Convoy Interrupts . | . . . . Stealth | -11 -10 -9 -9 --------- Run | Yrd Mat Mat Min Distress Signals 3 | . 1 2 . Communications Jammed . | . . . . Distress Signals . | . . . . Times Spotted 40 | . 4 15 21 Peak Tracking Total 17 | . 3 7 17 Tactical Retreats 1 | . . 1 . Traps | -11 -10 -9 -9 ------- Run | Yrd Mat Mat Min Traps Triggered 2 | . 1 1 . Indirectly . | . . . . Trap Hack Attempts . | . . . . Triggered . | . . . . Disarmed . | . . . . Reprogrammed . | . . . . Reused . | . . . . Traps Extracted . | . . . . Installed . | . . . . Triggered . | . . . . Machines | -11 -10 -9 -9 ---------- Run | Yrd Mat Mat Min Machines Disabled 2 | . . 2 . Max in Single Turn 1 | . . 1 . Machines Repaired . | . . . . Machines Dismantled . | . . . . Machines Sabotaged . | . . . . Overloaded Fab Kills . | . . . . Hacking | -11 -10 -9 -9 --------- Run | Yrd Mat Mat Min Machines Accessed 1 | . 1 . . Terminals . | . . . . Fabricators . | . . . . Repair Stations . | . . . . Recycling Units 1 | . 1 . . Scanalyzers . | . . . . Garrison Access . | . . . . Total Hacks 2 | . 2 . . Successful . | . . . . Failed 2 | . 2 . . Catastrophic . | . . . . Database Lockouts . | . . . . Manual . | . . . . Terminals . | . . . . Fabricators . | . . . . Repair Stations . | . . . . Recycling Units 2 | . 2 . . Scanalyzers . | . . . . Garrison Access . | . . . . Terminal Hacks . | . . . . Fabricator Hacks . | . . . . Repair Station Hacks . | . . . . Recycling Unit Hacks . | . . . . Scanalyzer . | . . . . Garrison Access Hacks . | . . . . Unauthorized Hacks . | . . . . Terminals . | . . . . Fabricators . | . . . . Repair Stations . | . . . . Recycling Units . | . . . . Scanalyzers . | . . . . Garrison Access . | . . . . Data Cores Recovered 1 | . 1 . . Used . | . . . . Hacking Detections 1 | . 1 . . Full Trace Events . | . . . . Feedback Events . | . . . . Feedback Blocked . | . . . . Robot Schematics Acquired . | . . . . Robots Built . | . . . . Authchips . | . . . . Time . | . . . . Total Robot Build Rating . | . . . . Part Schematics Acquired . | . . . . Parts Built . | . . . . Authchips . | . . . . Time . | . . . . Total Part Build Rating . | . . . . Parts Repaired . | . . . . Time . | . . . . Parts Recycled . | . . . . Recycled Matter . | . . . . Retrieved Matter . | . . . . Retrieved Components . | . . . . Parts Scanalyzed . | . . . . Part Schematics Acquired . | . . . . Parts Damaged . | . . . . Bothacking | -11 -10 -9 -9 ------------ Run | Yrd Mat Mat Min Used RIF Installer . | . . . . Robots Hacked . | . . . . Non-combat . | . . . . Combat . | . . . . Robot Hacks Applied . | . . . . Relay Couplers Released . | . . . . Fabnet Peak Effective % . | . . . . Robots Rewired . | . . . . Allies Hacked . | . . . . Hacks Repelled . | . . . . Allies | -11 -10 -9 -9 -------- Run | Yrd Mat Mat Min Total Allies 1 | . . . 1 Largest Group 1 | . . . 1 Highest-Rated Group 31 | . . . 31 Highest-Rated Ally 31 | . . . 31 Total Orders . | . . . . Ally Attacks 17 | . . . 17 Total Damage 258 | . . . 258 Kills 2 | . . . 2 Allies Corrupted . | . . . . Allies Melted . | . . . . Intel | -11 -10 -9 -9 ------- Run | Yrd Mat Mat Min Robot Analysis Total . | . . . . Derelict Logs Recovered 1 | . . . 1 Drone Launches . | . . . . Drone Recoveries . | . . . . Exploration | -11 -10 -9 -9 ------------- Run | Yrd Mat Mat Min Turns Passed 1376 | 133 506 383 354 Spaces Moved 751 | 77 303 161 210 Core 7 | 5 . 1 1 Treads 488 | 72 303 113 . Legs 256 | . . 47 209 Wheels . | . . . . Hover . | . . . . Flight . | . . . . Fastest Speed 50 | 50 160 160 120 Average Speed 152 | 152 160 171 126 Slowest Speed 550 | 160 160 550 500 Overloaded Moves . | . . . . Propulsion Burnouts . | . . . . Robots Hopped . | . . . . Cave-ins Triggered . | . . . . Exploration Rate (%) 27 | 6 39 23 41 Regions Visited 3 Branch Regions 1 Pre-discovered Areas . | . . . . Known Exits Taken 1 | . . 1 . Unknown Exits Taken 2 | 1 1 . . Scrap Searched 1 | . . . 1 Spaces Dug . | . . . . Terrain Destroyed 284 | . 4 142 138 Melee . | . . . . Projectile . | . . . . AOE 284 | . 4 142 138 Terrain Rammed . | . . . . Walls Destroyed . | . . . . Machines Disabled . | . . . . Actions | -11 -10 -9 -9 --------- Run | Yrd Mat Mat Min Total 888 | 90 319 216 263 Wait 22 | . . 5 17 Move 748 | 76 302 160 210 Hop . | . . . . Pick Up 27 | 8 10 5 4 Fast Attach 8 | 4 . 3 1 Attach 11 | 2 1 5 3 Detach . | . . . . Swap 15 | . 1 5 9 Drop 6 | . 2 4 . Fire 48 | . 3 27 18 Melee . | . . . . Ram . | . . . . Kick 2 | . . 1 1 Crush 1 | . . 1 . Escape Stasis . | . . . . Rewire . | . . . . Trap . | . . . . Miscellaneous . | . . . . Route ------- -11/Scrapyard -10/Materials -9/Materials -9/Mines History --------- Turn | Location | Event 59 | -11/Scrapyard | Discovered new exit (range 15) 134 | -11/Scrapyard | Entered Materials 330 | -10/Materials | Build established: Mutant 624 | -10/Materials | Discovered new exit (range 10) 640 | -10/Materials | Entered another Materials area 640 | -9/Materials | Evolved 2 slots: Propulsion x1, Utility x1 947 | -9/Materials | Lost 5 parts (1p2n2w) 1010 | -9/Materials | Discovered new exit (range 7) 1022 | -9/Materials | Identified exit to Mines 1023 | -9/Materials | Entered Mines 1054 | -9/Mines | Core integrity fell below 50% 1195 | -9/Mines | Learned 2 Materials zone layouts 1212 | -9/Mines | Met a Derelict testing a Signal Generator 1340 | -9/Mines | Assembled infested the area 1363 | -9/Mines | Core integrity fell below 20% 1373 | -9/Mines | Destroyed 9 combat bots 1377 | -9/Mines | Destroyed by D-53 Grenadier with Mini Grenade Launcher Last Messages --------------- Knocked back. The unstable cave ceiling collapses. as-33317 destroyed. The unstable cave ceiling collapses. Lgt. Ion Engine destroyed. as-32109 destroyed. The unstable cave ceiling collapses. as-55027 destroyed. as-31781 destroyed. as-48179 destroyed. The unstable cave ceiling collapses. as-25716 destroyed. U-05 Engineer lays Concrete. D-53 Grenadier suffers critical hit (Burn). U-05 Engineer lays Concrete. Lgt. Treads destroyed. The unstable cave ceiling collapses. Field Laser destroyed. Lgt. Ion Engine destroyed. The unstable cave ceiling collapses. Map ----- +----------------------------------------------------+ | | | | | | | ?????????????????????????????????????????????????? | | ?????????????????????????????????????????????????? | | ?????????????????????????????????????????????????? | | ?????????????????????????????????????????????????? | | ?????????????????????????????????????????????????? | | ?????????????????????????????????????????????????? | | ?????????????????????????????????????????????????? | | ??????????????????????? ????????????????????????? | | ????????????????????? ????????????????????????? | | ?????????????????? ?###????????????????????? | | #???????????????## # ###??????????????????? | | #???????????????## # #??????????????????? | | ?????????????? ?# ???????????????????? | | ????????????? # ???????????????????? | | ?????????????? % #???????????????????? | | ?????????????? #???????????????????? | | ????????????? #???????????????????? | | ??????????? # ########??????????????? | | ?????????? ## # dd ???????????????? | | ?????????? ## r %?????????????????? | | ?###?????? ### #??????????????????? | | ## ##????? ## #??????????????????? | | # #?????? # @ #??????????????????? | | # ##??????# # #??????????????????? | | # #?????### # #??????????????????? | | # #???### # # ##??????????????????? | | # #??## u ##???????????????????? | | ?# #???# u ###????????????????????? | | #### ##### ! ##?????????????????????? | | r= #?????????????????????? | | #?????????????????????? | | ##### ### ## #?????????????????????? | | ????# #?## # #?????????????????????? | | ????# #??# # ###### ##?????????????????????? | | ?#### #### ###????## ##??????????????????????? | | #??????### ##???????????????????????? | | ?########## #????????####????????????????????????? | | ??????????# #????????????????????????????????????? | | ??????????# #????????????????????????????????????? | | ??????????# #????????????????????????????????????? | | ??????????# #????????????????????????????????????? | | ??????????# #????????????????????????????????????? | | ??????????# #????????????????????????????????????? | | ??????????# #????????????????????????????????????? | | ??????????# #????????????????????????????????????? | | ??????????# #????????????????????????????????????? | | ??????????# ######???????????????????????????????? | +----------------------------------------------------+ Best States ------------- Heat Dissipation 28 Energy Generation 10 Energy Capacity 250 Matter Stores 300 Matter Capacity 300 Sight Range 16 Terrain Scan Density 10 Evasion (%) 55 Recoil Reduction 2 Item Schematics ----------------- None Robot Schematics ------------------ None Fabricated ------------ Nothing Alien Tech Used ----------------- None Achievements -------------- None Challenges ------------ None Game ------ Seed StorageChipMagmablaster Manual? 0 Play Time 00:20:05 Cumulative 6.1 hours Start 2024.04.29 @ 20:20:17 End 2024.04.29 @ 20:48:31 Sessions 1 Manual Loads 0 Difficulty Rogue Special Mode None Game No. 15 Rogue 15 Adventurer 0 Explorer 0 Win Type - Total 0 Types 0/0/0/0/0/0/0/0/0 Lore% 12 Gallery% 10 Achievement% 11 Wizard Run 0 Options --------- Layout 1 ASCII 0 Keyboard 0 Movement Vi Keybinds 0 Fullscreen 0 Font 28/Terminus Map View 50x35 Zoom Use 0% Tactical HUD 0 Map Filters NONE Filters NONE Steam 1 RUN: d88d82cf-ad07-447f-b50f-69aa39bcb977